bitfinex/quotes_BTCUSD_20251221
["timestamp","ask_amount","ask_price","bid_price","bid_amount"]
[1766326159158,0.00576,88205.0,88193.0,0.01133876]
[1766326159363,0.00576,88205.0,88194.0,0.01133863]
[1766326159590,0.00576,88205.0,88192.0,0.01133889]
[1766326159798,0.00576,88205.0,88196.0,0.01133838]
[1766326159959,0.00576,88208.0,88193.0,0.38477]
[1766326160184,0.00576,88208.0,88188.0,0.01133941]
[1766326160391,0.00576,88208.0,88164.0,0.51436117]
[1766326160392,0.00576,88208.0,88197.0,0.01133825]
[1766326160615,0.00576,88207.0,88203.0,0.0272308]
[1766326161177,0.00521,88207.0,88203.0,0.03856828]
[1766326161389,0.00576,88210.0,88203.0,0.0272308]
[1766326161593,0.00576,88210.0,88203.0,0.03856828]
[1766326161869,0.00576,88211.0,88203.0,0.03856828]
[1766326162072,0.00576,88215.0,88208.0,0.88186]
[1766326162276,0.00576,88215.0,88209.0,0.01360405]
[1766326162842,0.00576,88215.0,88208.0,0.38477]
[1766326163042,0.00576,88215.0,88203.0,0.0272308]
[1766326163245,0.00576,88215.0,88201.0,0.01133773]
[1766326163451,0.00576,88215.0,88199.0,0.50842799]
[1766326163705,0.00576,88215.0,88199.0,0.49709]
[1766326164030,0.00576,88215.0,88198.0,0.44146053]
[1766326164031,0.00576,88215.0,88198.0,0.38477]
[1766326164240,0.00055,88199.0,88192.0,0.01133889]
[1766326164452,0.00576,88205.0,88190.0,0.49709]
[1766326164651,0.00576,88205.0,88190.0,0.50842915]
[1766326164833,0.00576,88205.0,88191.0,0.05669512]
[1766326165036,0.00576,88205.0,88193.0,0.01133876]
[1766326165264,0.00576,88205.0,88191.0,0.49709]
[1766326165479,0.00576,88205.0,88190.0,0.38477]
[1766326166047,0.00576,88205.0,88190.0,0.39610915]
[1766326166653,0.00576,88205.0,88192.0,0.01133889]
[1766326166974,0.00576,88205.0,88194.0,0.01133863]
[1766326167403,0.00576,88208.0,88198.0,0.01133812]
[1766326167626,0.00010721,88224.0,88205.0,0.000549]
[1766326167798,0.00576,88223.0,88205.0,0.000549]
[1766326168000,0.00576,88223.0,88204.0,0.01133735]
[1766326168331,0.00576,88223.0,88203.0,0.01133748]
[1766326168464,0.00576,88223.0,88205.0,0.01133722]
[1766326168665,0.00576,88223.0,88202.0,0.9090908]
[1766326168881,0.00576,88223.0,88202.0,0.88186]
[1766326169702,0.00576,88223.0,88204.0,0.0680235]
[1766326169898,0.00576,88223.0,88203.0,0.01133748]
[1766326170137,0.00576,88223.0,88204.0,0.01133735]
[1766326170701,0.00576,88223.0,88203.0,0.01133748]
[1766326170899,0.00576,88223.0,88204.0,0.01133735]
[1766326171099,0.01700256,88222.0,88196.0,0.01133838]
[1766326171299,0.52328,88221.0,88199.0,0.01133799]
[1766326171518,0.92499294,88220.0,88198.0,0.01133812]
[1766326171772,0.92499294,88220.0,88194.0,0.01133863]
[1766326171773,0.38471,88217.0,88185.0,0.03857059]
[1766326171956,0.00055,88198.0,88177.0,0.01134082]
[1766326172114,0.00576,88197.0,88183.0,0.0272308]
[1766326172741,0.00576,88197.0,88185.0,0.01133979]
[1766326172919,0.00576,88197.0,88184.0,0.01133992]
[1766326173120,0.00576,88197.0,88183.0,0.0272308]
[1766326173574,0.52328,88196.0,88183.0,0.0272308]
[1766326173774,0.00576,88197.0,88183.0,8e-07]
[1766326173775,0.37531,88193.0,88183.0,8e-07]
[1766326173906,0.01700834,88192.0,88183.0,8e-07]
[1766326174707,0.37531,88193.0,88183.0,8e-07]
[1766326175366,0.00576,88197.0,88183.0,8e-07]
[1766326176128,0.37855,88216.0,88197.0,0.000549]
[1766326176329,0.00576,88215.0,88209.0,8e-07]
[1766326179771,0.35395,88212.0,88209.0,8e-07]
[1766326180121,0.86921468,88211.0,88209.0,8e-07]
[1766326180326,0.35395,88211.0,88209.0,8e-07]
[1766326180497,0.35395,88211.0,88199.0,0.0001]
[1766326180701,0.85238,88209.0,88204.0,0.0272308]
[1766326180907,0.00055,88204.0,88199.0,0.0272308]
[1766326181263,0.85814,88203.0,88183.0,8e-07]
[1766326181432,0.85814,88203.0,88198.0,8e-07]
[1766326181835,0.02276641,88202.0,88183.0,8e-07]
[1766326182040,0.00576,88202.0,88198.0,8e-07]
[1766326182993,0.005211,88202.0,88198.0,8e-07]
[1766326183196,0.005211,88202.0,88180.0,0.90224]
[1766326183397,0.33499,88200.0,88180.0,0.37957]
[1766326183622,0.005211,88202.0,88173.0,0.59071786]
[1766326183623,0.33499,88197.0,88173.0,0.52267]
[1766326183965,0.01133748,88203.0,88171.0,0.37957]
[1766326183966,0.47938,88193.0,88171.0,0.37957]
[1766326184146,0.02276834,88192.0,88171.0,0.37957]
[1766326184356,0.34075,88192.0,88171.0,0.37957]
[1766326184716,0.33523,88190.0,88169.0,0.0001]
[1766326184920,0.33523,88187.0,88169.0,0.0001]
[1766326185146,0.0227695,88186.0,88174.0,0.01814512]
[1766326185360,0.0227695,88186.0,88160.0,0.01134301]
[1766326185361,0.47892,88182.0,88156.0,0.06066564]
[1766326185696,0.31723,88175.0,88153.0,0.01814512]
[1766326185833,0.47892,88171.0,88153.0,0.01814512]
[1766326186182,0.31723,88170.0,88153.0,0.01825231]
[1766326186614,0.47845,88170.0,88153.0,0.01825231]
[1766326186821,0.31848,88171.0,88153.0,0.01825231]
[1766326187000,0.05116,88174.0,88153.0,0.01825231]
[1766326187325,0.05116,88174.0,88153.0,0.92049231]
[1766326187528,0.31848,88181.0,88153.0,0.01825231]
[1766326187681,0.05116,88180.0,88154.0,0.91585254]
[1766326187882,0.31871,88179.0,88154.0,0.90224]
[1766326189494,0.31871,88179.0,88153.0,0.00010719]
[1766326189495,0.00576,88178.0,88153.0,0.00010719]
[1766326189860,0.31914,88177.0,88154.0,0.90224]
[1766326190303,0.47771,88174.0,88153.0,0.00010719]
[1766326190512,0.31933,88171.0,88153.0,0.00010719]
[1766326190814,0.34210258,88170.0,88153.0,0.00010719]
[1766326191011,0.34210258,88170.0,88142.0,0.04066806]
[1766326191012,0.79646,88166.0,88139.0,0.01134571]
[1766326191231,0.01814512,88164.0,88128.0,0.37957]
[1766326191417,0.31942,88160.0,88136.0,0.0113461]
[1766326191615,0.05116,88163.0,88160.0,0.000549]
[1766326191818,0.05116,88163.0,88146.0,0.37957]
[1766326191976,0.05116,88163.0,88138.0,0.00576]
[1766326192176,0.81318413,88162.0,88135.0,0.54081512]
[1766326192522,0.3196,88160.0,88135.0,0.59074721]
[1766326192753,0.05116,88163.0,88140.0,0.01134558]
[1766326192942,0.05116,88163.0,88140.0,0.37957]
[1766326193144,0.3196,88161.0,88135.0,0.00035781]
[1766326193288,0.3196,88161.0,88138.0,0.52267]
[1766326193491,0.3196,88161.0,88143.0,0.0001]
[1766326194298,0.05126,88163.0,88143.0,0.0001]
[1766326194498,0.05126,88163.0,88143.0,0.37967]
[1766326194499,0.47576,88162.0,88143.0,0.37967]
[1766326194716,0.79569,88162.0,88143.0,0.37967]
[1766326195960,0.32008,88159.0,88143.0,0.0001]
[1766326196167,0.79484,88155.0,88143.0,0.0001]
[1766326196371,0.00576,88154.0,88135.0,0.00035781]
[1766326196588,0.00576,88154.0,88135.0,0.01170404]
[1766326196795,0.00576,88154.0,88135.0,0.00035781]
[1766326197376,0.00576,88154.0,88136.0,0.90224]
[1766326199080,0.00576,88154.0,88136.0,0.37957]
[1766326199281,0.00576,88154.0,88135.0,0.00035781]
[1766326199282,0.32038,88151.0,88135.0,0.00035781]
[1766326200345,0.00576,88150.0,88135.0,0.00035781]
[1766326201878,0.3207,88148.0,88135.0,0.00035781]
[1766326202093,0.01814512,88145.0,88135.0,0.00035781]
[1766326202296,0.01701702,88147.0,88135.0,0.00035781]
[1766326202297,0.3207,88146.0,88135.0,0.00035781]
[1766326204530,0.00576,88150.0,88135.0,0.00035781]
[1766326204897,0.792337,88135.0,88115.0,0.52267]
[1766326205146,0.792337,88135.0,88113.0,0.0004]
[1766326205147,0.32145,88133.0,88113.0,0.00616]
[1766326205356,0.01701992,88132.0,88113.0,0.00616]
[1766326205575,0.00576,88134.0,88116.0,0.51333]
[1766326205697,0.00576,88134.0,88117.0,0.01134854]
[1766326205903,0.00576,88134.0,88116.0,0.51333]
[1766326208105,0.00576,88134.0,88113.0,0.0004]
[1766326208466,0.3274,88134.0,88113.0,0.0004]
[1766326208797,0.31991,88132.0,88115.0,0.38956]
[1766326208975,0.31991,88129.0,88113.0,0.0004]
[1766326209578,0.31991,88129.0,88102.0,0.38956]
[1766326209753,0.31963,88127.0,88102.0,0.38956]
[1766326209937,0.31963,88125.0,88102.0,0.38956]
[1766326210390,0.46775,88125.0,88102.0,0.38956]
[1766326210595,0.31967,88124.0,88102.0,0.38956]
[1766326210924,0.78742,88123.0,88103.0,0.51333]
[1766326211125,0.78742,88123.0,88074.0,0.08123141]
[1766326211126,0.00055,88102.0,88087.0,0.0004]
[1766326211264,0.00576,88101.0,88088.0,0.01135228]
[1766326211463,0.00576,88100.0,88088.0,0.38956]
[1766326211670,0.00576,88100.0,88087.0,0.0004]
[1766326212064,0.4723,88100.0,88087.0,0.0004]
[1766326212287,0.78567,88099.0,88087.0,0.00050701]
[1766326212492,0.31865,88097.0,88073.0,0.0004]
[1766326212697,0.31865,88093.0,88073.0,0.00050726]
[1766326213031,0.34143765,88092.0,88073.0,0.00050726]
[1766326213240,0.33567784,88091.0,88073.0,0.00050726]
[1766326213391,0.01702803,88090.0,88073.0,0.00050726]
[1766326213586,0.31865,88091.0,88073.0,0.00050726]
[1766326213789,0.00576,88092.0,88073.0,0.00050726]
[1766326213790,0.01702803,88090.0,88073.0,0.00050726]
[1766326214017,0.78463,88090.0,88073.0,0.00050726]
[1766326214233,0.78463,88090.0,88030.0,0.00099999]
[1766326214234,0.46537,88086.0,88061.0,0.38956]
[1766326214424,0.000507,88073.0,88056.0,0.5246864]
[1766326214653,0.000507,88073.0,88056.0,0.51333]
[1766326214654,0.00576,88072.0,88056.0,0.51333]
[1766326214802,0.00576,88072.0,88058.0,0.0567803]
[1766326214983,0.00576,88072.0,88059.0,0.01135602]
[1766326215188,0.00576,88072.0,88057.0,0.01135628]
[1766326215411,0.00010706,88086.0,88068.0,0.51333]
[1766326215660,0.00576,88085.0,88069.0,0.90289]
[1766326215865,0.00010706,88086.0,88072.0,0.38956]
[1766326216067,0.00576,88085.0,88073.0,0.01362506]
[1766326216273,0.00010706,88086.0,88075.0,0.90289]
[1766326216489,0.00576,88084.0,88071.0,0.01135447]
[1766326216722,0.82583,88067.0,88031.0,0.06815755]
[1766326216926,0.32422,88056.0,88028.0,0.38956]
[1766326217219,0.32422,88074.0,88039.0,0.0113586]
[1766326217423,0.32937,88072.0,88040.0,0.38956]
[1766326217627,0.00576,88071.0,88044.0,0.38956]
[1766326217827,0.50134,88070.0,88044.0,0.38956]
[1766326218022,0.32937,88064.0,88037.0,0.06255408]
[1766326218231,0.51261,88063.0,88041.0,0.01135834]
[1766326218662,0.51261,88063.0,88040.0,0.01135847]
[1766326218857,0.34107887,88062.0,88038.0,0.38956]
[1766326219059,0.32932,88062.0,88040.0,0.01135847]
[1766326219344,0.32932,88062.0,88039.0,0.0113586]
[1766326219591,0.83563,88062.0,88041.0,0.01135834]
[1766326219803,0.83563,88062.0,88038.0,0.91424873]
[1766326219804,0.01703364,88061.0,88038.0,0.90289]
[1766326219979,0.00576,88060.0,88041.0,0.51333]
[1766326220176,0.00576,88060.0,88042.0,0.90289]
[1766326220812,0.00576,88060.0,88042.0,0.91424821]
[1766326221013,0.00576,88060.0,88042.0,0.90289]
[1766326222887,0.00576,88060.0,88033.0,0.01135937]
[1766326222888,0.34611403,88059.0,88033.0,0.90289]
[1766326223245,0.34611403,88059.0,88020.0,0.22721862]
[1766326223246,0.49823,88031.0,88001.0,0.51333]
[1766326223461,0.01814512,88024.0,88001.0,0.51333]
[1766326223592,0.30783,88027.0,88003.0,0.01136324]
[1766326223795,0.30783,88042.0,88015.0,0.51333]
[1766326223997,0.0512,88041.0,88020.0,0.51333]
[1766326224217,0.0512,88041.0,88021.0,0.38956]
[1766326224218,0.01814512,88040.0,88021.0,0.38956]
[1766326224444,0.12625421,88039.0,88018.0,0.0002489]
[1766326224653,0.00010698,88040.0,88019.0,0.51333]
[1766326224900,0.00010698,88040.0,88026.0,0.51333]
[1766326225237,0.00576,88039.0,88028.0,0.48951]
[1766326225443,0.04544,88059.0,88040.0,0.489616]
[1766326225707,0.00576,88058.0,88040.0,0.489616]
[1766326225842,0.00576,88058.0,88040.0,0.48951]
[1766326226729,0.00576,88057.0,88041.0,0.39925]
[1766326227543,0.00576,88057.0,88042.0,0.48951]
[1766326228525,0.00576,88057.0,88040.0,0.39925]
[1766326228706,0.00576,88057.0,88033.0,0.48951]
[1766326228707,0.01703461,88056.0,88033.0,0.48951]
[1766326229535,0.00576,88057.0,88035.0,0.48951]
[1766326229742,0.00576,88057.0,88035.0,0.48961698]
[1766326230526,0.04849185,88057.0,88035.0,0.48961698]
[1766326230732,0.02839101,88056.0,88035.0,0.00010698]
[1766326231008,0.01814512,88048.0,88035.0,0.00010698]
[1766326231291,0.02279635,88047.0,88035.0,0.00010698]
[1766326231645,0.00576,88047.0,88035.0,0.00010698]
[1766326232392,0.04544,88054.0,88047.0,0.001099]
[1766326232537,0.00576,88053.0,88045.0,0.48951]
[1766326232894,0.00576,88053.0,88036.0,0.01135898]
[1766326232895,0.00099999,87980.0,87945.0,0.48951]
[1766326233130,0.00099999,87980.0,87956.0,0.0568461]
[1766326233131,0.03634484,87977.0,87956.0,0.0568461]
[1766326233341,0.00099999,87960.0,87950.0,0.88876]
[1766326233564,0.00199998,87970.0,87962.0,0.48951]
[1766326233787,0.01533955,87979.0,87965.0,0.88876]
[1766326234007,0.0058,87990.0,87967.0,0.39925]
[1766326234236,0.0058,87990.0,87968.0,0.01364132]
[1766326234454,0.0113635,88001.0,87968.0,0.01364132]
[1766326234455,0.0058,88001.0,87968.0,0.01364132]
[1766326234640,0.0058,88001.0,87990.0,0.0001]
[1766326234857,0.07986284,88001.0,87990.0,0.0001]
[1766326235056,0.01136415,87996.0,87978.0,0.40505]
[1766326235256,0.01136363,88000.0,87978.0,0.40505]
[1766326235594,0.01136415,87996.0,87978.0,0.40505]
[1766326235808,0.01136441,87994.0,87978.0,0.40540794]
[1766326236007,0.01136402,87997.0,87978.0,0.40540794]
[1766326236292,0.01136415,87996.0,87978.0,0.40540794]
[1766326236429,0.06818451,87997.0,87978.0,0.40540794]
[1766326236607,0.01136428,87995.0,87978.0,0.40540794]
[1766326236807,0.01136415,87996.0,87978.0,0.40540794]
[1766326237049,0.01136441,87994.0,87978.0,0.40540794]
[1766326237251,0.06818632,87995.0,87978.0,0.40540794]
[1766326237470,0.01136454,87993.0,87978.0,0.40540794]
[1766326237692,0.01136479,87991.0,87978.0,0.39960794]
[1766326239886,0.01704777,87988.0,87981.0,0.0058]
[1766326241383,0.01136441,87994.0,87988.0,0.000549]
[1766326241584,0.01136376,87999.0,87981.0,0.0058]
[1766326241783,0.07398155,88001.0,87981.0,0.41215]
[1766326241784,0.0058,88001.0,87981.0,0.41215]
[1766326242290,0.0058,88009.0,87989.0,0.40635]
[1766326242496,0.0058,88009.0,87990.0,0.0058]
[1766326242497,0.02954721,88008.0,87990.0,0.0058]
[1766326242693,0.01136273,88007.0,87990.0,0.0058]
[1766326242916,0.01136286,88006.0,87990.0,0.0058]
[1766326243299,0.01818461,88008.0,87990.0,0.0058]
[1766326243724,0.02954721,88008.0,87990.0,0.0058]
[1766326243923,0.01818461,88008.0,87990.0,0.0058]
[1766326244123,0.02954721,88008.0,87990.0,0.0058]
[1766326244546,0.01136286,88006.0,87990.0,0.0058]
[1766326245147,0.01136273,88007.0,87990.0,0.0058]
[1766326245357,0.01136273,88007.0,87990.0,0.93132]
[1766326245550,0.02954721,88008.0,87990.0,0.93132]
[1766326245783,0.01136286,88006.0,87990.0,0.93132]
[1766326245895,0.01136299,88005.0,87990.0,0.93132]
[1766326246100,0.01136324,88003.0,87990.0,0.41215]
[1766326246307,0.01136311,88004.0,87982.0,0.51917]
[1766326246308,0.01704506,88002.0,87982.0,0.51917]
[1766326246507,0.01136311,88004.0,87982.0,0.51917]
[1766326246508,0.01704487,88003.0,87983.0,0.05128]
[1766326246935,0.01704487,88003.0,87983.0,0.57045]
[1766326247163,0.01704487,88003.0,87984.0,0.40635]
[1766326247505,0.02954721,88008.0,87980.0,0.0001]
[1766326247706,0.01818461,88006.0,87988.0,0.51917]
[1766326247887,0.0058,88009.0,87988.0,0.51917]
[1766326247888,0.01818461,88007.0,87988.0,0.51917]
[1766326248561,0.0058,88009.0,87989.0,0.40635]
[1766326248938,0.01716247,88009.0,87989.0,0.40635]
[1766326249144,0.40532,88004.0,87990.0,0.0058]
[1766326249348,0.40532,88004.0,87991.0,0.0058]
[1766326249568,0.01704487,88003.0,87991.0,0.0057]
[1766326249967,0.01704487,88003.0,87980.0,0.51927]
[1766326249968,0.07386118,88003.0,87980.0,0.51927]
[1766326250183,0.01704487,88003.0,87983.0,0.51917]
[1766326250380,0.01704487,88003.0,87981.0,0.05128]
[1766326250381,0.01704506,88002.0,87984.0,0.92552]
[1766326251120,0.02840715,88006.0,87984.0,0.92552]
[1766326251446,0.01136324,88003.0,87984.0,0.92552]
[1766326251645,0.01136415,87996.0,87980.0,0.0001]
[1766326251930,0.40416,87994.0,87980.0,0.0001]
[1766326252102,0.01704681,87993.0,87980.0,0.0001]
[1766326252300,0.01704681,87993.0,87981.0,0.0058]
[1766326252468,0.40416,87994.0,87981.0,0.0058]
[1766326253315,0.06818381,87998.0,87981.0,0.0058]
[1766326253316,0.0058,88009.0,87994.0,0.000549]
[1766326253515,0.01136273,88007.0,87994.0,0.006349]
[1766326253715,0.01704429,88006.0,87994.0,0.006349]
[1766326254027,0.01136311,88004.0,87994.0,0.0058]
[1766326254233,0.0113635,88001.0,87980.0,0.0001]
[1766326254567,0.01704545,88000.0,87981.0,0.0058]
[1766326254767,0.0113635,88001.0,87981.0,0.0058]
[1766326255095,0.01704545,88000.0,87981.0,0.0058]
[1766326255228,0.09216428,88003.0,87981.0,0.0058]
[1766326255229,0.01704506,88002.0,87981.0,0.0058]
[1766326255432,0.03534785,88003.0,87981.0,0.0058]
[1766326255433,0.02398461,88003.0,87981.0,0.0058]
[1766326255848,0.02398461,88003.0,87980.0,0.0001]
[1766326255849,0.39637,88000.0,87980.0,0.0001]
[1766326256050,0.02398461,88003.0,87980.0,0.0001]
[1766326256271,0.02398461,88003.0,87981.0,0.92552]
[1766326256433,0.03534785,88003.0,87981.0,0.92552]
[1766326256636,0.02398461,88003.0,87981.0,0.93132]
[1766326256833,0.01136337,88002.0,87981.0,0.93132]
[1766326257370,0.02398461,88003.0,87981.0,0.93132]
[1766326257673,0.02398461,88003.0,87982.0,0.92552]
[1766326258173,0.02398461,88003.0,87981.0,0.0058]
[1766326258174,0.0058,88003.0,87984.0,0.92552]
[1766326258409,0.01136247,88009.0,87981.0,0.0058]
[1766326258410,0.03032194,88029.0,88015.0,0.05680849]
[1766326258590,0.03032194,88029.0,88014.0,0.01136182]
[1766326258591,0.13778866,88050.0,88014.0,0.01136182]
[1766326258592,0.01135795,88044.0,88029.0,0.00055]
[1766326258747,0.01818461,88039.0,88029.0,0.00055]
[1766326258949,0.01818461,88039.0,88018.0,0.0058]
[1766326258950,0.01703809,88038.0,88018.0,0.0058]
[1766326259337,0.01703809,88038.0,88014.0,0.40635]
[1766326259551,0.01714535,88038.0,88017.0,0.0058]
[1766326259759,0.01714535,88038.0,88007.0,0.1136558]
[1766326259760,0.01714535,88038.0,88002.0,0.40635]
[1766326259761,0.0681537,88037.0,88002.0,0.40635]
[1766326260000,0.01818461,88025.0,88002.0,0.40635]
[1766326260203,0.0228408,88024.0,88002.0,0.40635]
[1766326260383,0.4538808,88024.0,88002.0,0.41215]
[1766326260581,0.017041,88023.0,88002.0,0.0058]
[1766326260836,0.0058,88024.0,88005.0,0.40635]
[1766326261029,0.0058,88024.0,88011.0,0.40635]
[1766326261231,0.0058,88024.0,88012.0,0.9391545]
[1766326261232,0.005251,88024.0,88012.0,0.9391545]
[1766326261428,0.005251,88024.0,88012.0,0.92552]
[1766326261606,0.005251,88024.0,88012.0,0.51917]
[1766326261805,0.005251,88024.0,88012.0,0.92552]
[1766326262006,0.005251,88024.0,88013.0,0.40635]
[1766326266371,0.005251,88024.0,88014.0,0.53227]
[1766326266569,0.01818461,88035.0,88016.0,0.01136157]
[1766326266771,0.01818461,88035.0,88020.0,0.53227]
[1766326266979,0.00010726,88038.0,88025.0,0.42361]
[1766326267134,0.00010726,88038.0,88027.0,0.42361]
[1766326267720,0.00010726,88038.0,88023.0,0.0058]
[1766326267920,0.00010726,88038.0,88016.0,0.42361]
[1766326268125,0.01714535,88038.0,88017.0,0.0058]
[1766326268439,0.01714535,88038.0,88018.0,0.0058]
[1766326268646,0.0001,88034.0,88018.0,0.0058]
[1766326269553,0.0001,88034.0,88019.0,0.0058]
[1766326269954,0.0001,88034.0,88019.0,0.53807]
[1766326270150,0.0058,88039.0,88019.0,0.53807]
[1766326270151,0.0058,88039.0,88019.0,0.0058]
[1766326270352,0.0058,88039.0,88021.0,0.42361]
[1766326270774,0.0058,88039.0,88022.0,0.53227]
[1766326270992,0.0058,88039.0,88026.0,0.53227]
[1766326271202,0.0058,88039.0,88027.0,0.42361]
[1766326272716,0.00012563,88039.0,88030.0,0.53227]
[1766326272942,0.42433,88060.0,88033.0,0.42361]
[1766326272943,0.0058,88045.0,88033.0,0.42361]
[1766326273150,0.04548,88056.0,88033.0,0.42361]
[1766326273151,0.0058,88047.0,88033.0,0.42361]
[1766326273359,0.04548,88056.0,88027.0,0.53227]
[1766326273360,0.42372,88050.0,88027.0,0.53227]
[1766326273566,0.44190461,88047.0,88028.0,0.0058]
[1766326274356,0.44190461,88047.0,88026.0,0.0058]
[1766326275587,0.44190461,88047.0,88027.0,0.42361]
[1766326275787,0.01818461,88047.0,88027.0,0.95588]
[1766326276006,0.01818461,88047.0,88026.0,0.0058]
[1766326276212,0.01818461,88047.0,88026.0,0.01716027]
[1766326276394,0.01818461,88047.0,88027.0,0.01136015]
[1766326276564,0.01818461,88047.0,88029.0,0.53227]
[1766326276766,0.01818461,88047.0,88030.0,0.42361]
[1766326276974,0.01818461,88047.0,88031.0,0.42361]
[1766326277735,0.0058,88051.0,88033.0,0.42361]
[1766326278271,0.01818461,88047.0,88033.0,0.42361]
[1766326278636,0.01818461,88047.0,88035.0,0.42361]
[1766326278869,0.0058,88051.0,88035.0,0.95588]
[1766326280145,0.01818461,88047.0,88035.0,0.95588]
[1766326280369,0.01818461,88047.0,88026.0,0.01716027]
[1766326280370,0.0058,88051.0,88026.0,0.53807]
[1766326280557,0.01818461,88046.0,88030.0,0.42361]
[1766326280759,0.01818461,88046.0,88030.0,0.95588]
[1766326282111,0.0058,88051.0,88030.0,0.95588]
[1766326282112,0.0058,88051.0,88033.0,0.01135937]
[1766326282317,0.0058,88051.0,88037.0,0.95588]
[1766326282929,0.0058,88051.0,88037.0,0.42361]
[1766326283611,0.0001,88049.0,88034.0,0.0058]
[1766326283959,0.0001,88049.0,88037.0,0.53227]
[1766326284159,0.0001,88049.0,88038.0,0.96951047]
[1766326284359,0.0058,88051.0,88050.0,0.0199]
[1766326284566,0.0058,88051.0,88050.0,0.018801]
[1766326285157,0.0058,88051.0,88050.0,0.001031]
[1766326287928,0.0058,88054.0,88050.0,0.001031]
[1766326288498,0.01135499,88067.0,88050.0,0.001031]
[1766326288499,0.05677131,88073.0,88050.0,0.001031]
[1766326288702,0.26713434,88083.0,88050.0,0.001031]
[1766326288703,0.0058,88069.0,88054.0,0.001099]
[1766326289199,0.0058,88069.0,88050.0,0.001031]
[1766326289200,0.0058,88069.0,88051.0,0.934]
[1766326289401,0.0058,88069.0,88052.0,0.43516]
[1766326289671,0.0058,88069.0,88053.0,0.934]
[1766326290187,0.06377191,88070.0,88069.0,0.001099]
[1766326290188,0.0001073,88070.0,88069.0,0.001099]
[1766326290398,0.0001073,88070.0,88051.0,0.0058]
[1766326290399,0.41574,88069.0,88051.0,0.0058]
[1766326290530,0.41574,88067.0,88043.0,0.0058]
[1766326290714,0.41574,88065.0,88043.0,0.0058]
[1766326290920,0.01703306,88064.0,88043.0,0.44096]
[1766326291142,0.41574,88065.0,88045.0,0.01135782]
[1766326291385,0.01703306,88064.0,88045.0,0.49884]
[1766326291778,0.01703306,88064.0,88048.0,0.0058]
[1766326292367,0.01703306,88064.0,88045.0,0.51019782]
[1766326292566,0.41574,88065.0,88048.0,0.0058]
[1766326294760,0.01703306,88064.0,88048.0,0.0058]
[1766326295059,0.41574,88065.0,88048.0,0.0058]
[1766326295263,0.01703306,88064.0,88048.0,0.0058]
[1766326296216,0.01703306,88064.0,88045.0,0.50464]
[1766326296356,0.43041461,88060.0,88050.0,1e-06]
[1766326296563,0.41223,88058.0,88050.0,1e-06]
[1766326303518,0.0283907,88057.0,88050.0,1e-06]
[1766326303697,0.01703442,88057.0,88050.0,1e-06]
[1766326303874,0.0283907,88057.0,88050.0,1e-06]
[1766326304677,0.01703442,88057.0,88050.0,1e-06]
[1766326305098,0.0283907,88057.0,88050.0,1e-06]
[1766326305418,0.40649,88056.0,88050.0,1e-06]
[1766326305619,0.0170348,88055.0,88050.0,1e-06]
[1766326307120,0.0170348,88055.0,88032.0,0.0058]
[1766326307121,0.01715602,88059.0,88021.0,0.48584]
[1766326307122,0.4052,88051.0,88021.0,0.48584]
[1766326307270,0.01818461,88044.0,88024.0,0.00576]
[1766326307645,0.00576,88043.0,88025.0,0.48584]
[1766326307871,0.00576,88043.0,88030.0,0.48584]
[1766326308906,0.00576,88043.0,88031.0,0.41457]
[1766326309118,0.00576,88043.0,88033.0,0.41457]
[1766326309323,0.00576,88043.0,88033.0,0.41467726]
[1766326309520,0.00576,88043.0,88020.0,0.01136105]
[1766326309521,0.001099,88033.0,88020.0,0.90041]
[1766326309724,0.00120626,88033.0,88020.0,0.90041]
[1766326310152,0.00010726,88033.0,88020.0,0.90041]
[1766326310751,0.01714632,88033.0,88020.0,0.90041]
[1766326311131,0.01714632,88033.0,88020.0,0.41457]
[1766326311132,0.00010726,88033.0,88020.0,0.41457]
[1766326311733,0.00010726,88033.0,88014.0,0.4917]
[1766326311957,0.43122569,88033.0,88014.0,0.48594]
[1766326312157,0.40282726,88033.0,88014.0,0.48594]
[1766326312363,0.41418663,88033.0,88014.0,0.48594]
[1766326313339,0.01703925,88032.0,88014.0,0.48594]
[1766326313614,0.41504629,88033.0,88014.0,0.48594]
[1766326313615,0.00010726,88033.0,88019.0,0.0001]
[1766326313787,0.40152726,88033.0,88019.0,0.0001]
[1766326316729,0.40152726,88033.0,88015.0,0.41457]
[1766326316730,0.01703925,88032.0,88015.0,0.41457]
[1766326316933,0.39947,88031.0,88015.0,0.41457]
[1766326317156,0.01703964,88030.0,88015.0,0.41457]
[1766326317452,0.00576,88029.0,88015.0,0.41457]
[1766326317660,0.01704003,88028.0,88015.0,0.41457]
[1766326318017,0.01704003,88028.0,88016.0,0.48584]
[1766326318256,0.00576,88029.0,88016.0,0.48584]
[1766326318459,0.00576,88029.0,88017.0,0.41457]
[1766326318700,0.00566,88029.0,88015.0,0.90041]
[1766326319076,0.00566,88029.0,88014.0,0.0001]
[1766326319422,0.00566,88029.0,88015.0,0.90041]
[1766326320168,0.00566,88029.0,88014.0,0.0001]
[1766326320572,0.00566,88029.0,88015.0,0.90041]
[1766326320773,0.00566,88029.0,88014.0,0.0001]
[1766326321169,0.00566,88029.0,88015.0,0.90041]
[1766326321580,0.00566,88029.0,88014.0,0.0001]
[1766326321783,0.00566,88029.0,88015.0,0.90041]
[1766326322202,0.00566,88029.0,88014.0,0.0001]
[1766326322397,0.00566,88029.0,88015.0,0.90041]
[1766326322555,0.00566,88029.0,88014.0,0.0001]
[1766326323592,0.00576,88029.0,88015.0,0.90041]
[1766326323814,0.00576,88029.0,88014.0,0.0001]
[1766326324012,0.00576,88029.0,88017.0,0.41457]
[1766326324337,0.00576,88029.0,88020.0,0.90041]
[1766326326746,0.00576,88029.0,88019.0,0.01136118]
[1766326327050,0.00010726,88033.0,88024.0,0.40492]
[1766326327257,0.00010726,88033.0,88024.0,0.89734]
[1766326327681,0.00010726,88033.0,88025.0,0.91097249]
[1766326327885,0.00010726,88033.0,88025.0,0.89734]
[1766326328103,0.00576,88034.0,88018.0,0.89734]
[1766326328329,0.00576,88034.0,88018.0,0.00010726]